bitfinex/quotes_ETHUSD_20250625
["timestamp","ask_amount","ask_price","bid_price","bid_amount"]
[1750839466770,6.51311923,2444.1,2444.0,4.09165302]
[1750839467062,6.51311923,2444.1,2444.0,12.46565302]
[1750839468566,16.51311923,2444.1,2444.0,12.46565302]
[1750839470842,16.51311923,2444.1,2444.0,13.21595302]
[1750839471043,16.51311923,2444.1,2444.0,14.98765025]
[1750839471481,10.0,2444.1,2444.0,14.98765025]
[1750839473170,10.0,2444.1,2444.0,10.14269723]
[1750839473371,10.0,2444.1,2444.0,14.23435025]
[1750839474750,10.0,2444.1,2444.0,15.00355025]
[1750839476778,10.0,2444.1,2444.0,10.14169723]
[1750839476957,10.0,2444.1,2444.0,1.717]
[1750839477162,10.0,2444.0,2443.9,6.656]
[1750839477365,6.51311923,2444.0,2443.9,6.656]
[1750839478852,16.51311923,2444.0,2443.9,6.656]
[1750839479984,14.84313594,2443.9,2443.6,1.717]
[1750839480294,19.23950059,2443.7,2443.6,1.717]
[1750839480486,19.23950059,2443.7,2443.4,9.821]
[1750839480487,10.0,2443.6,2443.4,9.821]
[1750839480781,23.33176494,2443.7,2443.4,11.538]
[1750839480782,0.7557,2443.5,2443.4,11.538]
[1750839481357,0.7557,2443.5,2443.4,1.717]
[1750839483587,0.7557,2443.5,2443.1,1.717]
[1750839483588,2.12437906,2443.5,2443.1,1.717]
[1750839483767,10.7536,2443.2,2443.1,1.717]
[1750839484168,10.7536,2443.2,2442.8,1.718]
[1750839484169,14.84659279,2443.2,2442.8,1.718]
[1750839484482,19.23950059,2442.9,2442.8,1.718]
[1750839485877,19.55317478,2442.9,2442.8,1.718]
[1750839493576,22.39023855,2442.9,2442.8,1.718]
[1750839494476,20.32977478,2442.9,2442.8,1.718]
[1750839497690,19.55317478,2442.9,2442.8,1.718]
[1750839500424,16.83140082,2442.9,2442.8,1.718]
[1750839501124,20.92489625,2442.9,2442.8,1.718]
[1750839502118,16.83140082,2442.9,2442.8,1.718]
[1750839503624,14.09378491,2442.8,2442.5,9.821]
[1750839503779,16.51772663,2442.6,2442.5,9.821]
[1750839504677,16.51772663,2442.6,2442.4,1.717]
[1750839504678,10.8015,2442.5,2442.4,1.717]
[1750839504880,14.89566581,2442.5,2442.4,1.717]
[1750839505082,10.8015,2442.5,2442.2,1.717]
[1750839505281,16.51772663,2442.3,2442.2,1.717]
[1750839507412,20.61222771,2442.3,2442.2,1.717]
[1750839507716,16.51772663,2442.3,2442.2,1.717]
[1750839507915,16.71758309,2442.3,2442.2,1.717]
[1750839509714,16.51772663,2442.3,2442.2,1.717]
[1750839513684,20.61222771,2442.3,2442.2,1.717]
[1750839515605,16.51772663,2442.3,2442.2,1.717]
[1750839515836,23.16872663,2442.3,2442.2,1.717]
[1750839516131,27.26322771,2442.3,2442.2,1.717]
[1750839516314,10.0,2442.0,2441.9,1.718]
[1750839517245,10.0,2442.0,2441.6,9.825]
[1750839517246,10.0,2441.8,2441.6,9.825]
[1750839517411,16.51772663,2441.7,2441.6,9.825]
[1750839522041,10.0,2441.6,2441.5,1.718]
[1750839522759,0.30196826,2441.6,2441.5,1.718]
[1750839523055,6.51772663,2441.7,2441.5,1.718]
[1750839524523,10.61323753,2441.7,2441.5,1.718]
[1750839524955,6.51772663,2441.7,2441.5,1.718]
[1750839526725,16.51772663,2441.7,2441.5,1.718]
[1750839526981,10.0,2441.6,2441.5,1.718]
[1750839527961,6.51772663,2441.7,2441.5,1.718]
[1750839528130,10.0,2441.6,2441.5,1.718]
[1750839530051,10.30123602,2441.6,2441.5,2.375142]
[1750839530251,10.30123602,2441.6,2441.5,3.156042]
[1750839531964,10.30123602,2441.6,2441.5,2.4989]
[1750839532167,10.30123602,2441.6,2441.5,1.718]
[1750839538571,0.30123602,2441.6,2441.5,1.718]
[1750839538874,16.51772663,2441.7,2441.5,1.718]
[1750839540777,20.61323699,2441.7,2441.5,1.718]
[1750839541463,14.09567496,2441.6,2441.5,1.718]
[1750839541781,10.0,2441.6,2441.5,1.718]
[1750839542161,16.51772663,2441.6,2441.5,1.718]
[1750839542877,10.0,2441.6,2441.5,6.06120271]
[1750839543064,6.51772663,2442.2,2441.6,0.7669]
[1750839543262,10.0,2442.1,2441.6,0.7669]
[1750839543461,10.0,2442.1,2441.8,0.8273]
[1750839543668,10.0,2442.1,2441.8,2.3944358]
[1750839544181,10.61290923,2441.9,2441.7,1.715]
[1750839544869,10.0,2441.8,2441.7,1.715]
[1750839545072,0.795,2441.7,2441.3,2.4704]
[1750839545283,6.51772663,2441.6,2441.3,1.715]
[1750839545855,10.61343328,2441.6,2441.3,1.715]
[1750839546051,10.0,2441.4,2441.3,1.715]
[1750839548164,10.0,2441.5,2441.3,1.715]
[1750839548891,14.09586058,2441.5,2441.3,1.715]
[1750839549794,10.0,2441.5,2441.3,1.715]
[1750839552886,14.09584961,2441.5,2441.3,1.715]
[1750839553090,10.0,2441.5,2441.3,1.715]
[1750839556220,14.09601048,2441.4,2441.3,1.715]
[1750839557167,4.09617826,2441.3,2440.7,10.6211]
[1750839557367,4.09617826,2441.3,2440.8,8.368]
[1750839557368,10.0,2440.9,2440.8,8.368]
[1750839558002,10.0,2440.9,2440.8,1.715]
[1750839558871,14.09684952,2440.9,2440.8,1.715]
[1750839559105,10.0,2440.9,2440.8,1.715]
[1750839559684,14.09684952,2440.9,2440.8,1.715]
[1750839559886,10.0,2440.9,2440.8,1.715]
[1750839562205,14.09684952,2440.9,2440.8,1.715]
[1750839563388,14.94894418,2440.9,2440.8,1.715]
[1750839563581,10.0,2440.5,2440.3,2.2765]
[1750839563782,16.51772663,2440.4,2440.3,2.2765]
[1750839564013,16.51772663,2440.4,2440.3,1.715]
[1750839564873,16.51772663,2440.4,2440.0,0.0025]
[1750839564874,10.0,2440.3,2440.0,0.0025]
[1750839565088,16.51772663,2440.1,2440.0,0.0025]
[1750839568712,16.82819056,2440.1,2440.0,0.0025]
[1750839570804,20.92638325,2440.1,2440.0,0.0025]
[1750839571417,21.13249048,2440.1,2440.0,0.0025]
[1750839571635,23.70953865,2440.1,2440.0,0.0025]
[1750839573436,30.38253865,2440.1,2440.0,0.0025]
[1750839574318,30.38253865,2440.1,2439.5,0.7521]
[1750839574319,14.09903262,2439.6,2439.5,1.715]
[1750839575143,10.0,2439.6,2439.5,1.715]
[1750839575906,14.09903262,2439.6,2439.5,1.715]
[1750839576103,10.0,2439.6,2439.5,1.715]
[1750839576325,10.0,2439.4,2438.9,0.64104025]
[1750839576525,10.0,2439.2,2439.1,0.7508]
[1750839579208,10.0,2439.2,2439.0,0.8177]
[1750839579445,10.0,2439.2,2439.0,7.5007]
[1750839579946,14.09971084,2439.2,2439.0,6.683]
[1750839580314,14.09971084,2439.2,2438.8,2.5208]
[1750839580515,16.51772663,2438.9,2438.8,1.715]
[1750839581649,20.61793574,2438.9,2438.8,1.715]
[1750839581849,16.51772663,2438.9,2438.8,1.715]
[1750839582351,20.61793574,2438.9,2438.8,1.715]
[1750839582561,14.10045691,2438.8,2438.3,9.1809]
[1750839582764,10.0,2438.4,2438.3,13.28210709]
[1750839582962,10.0,2438.4,2438.3,6.58910709]
[1750839583270,10.0,2438.6,2438.5,4.10086405]
[1750839583563,10.0,2438.6,2438.4,4.1009619]
[1750839583772,10.0,2438.6,2438.5,1.06899711]
[1750839584470,10.0,2438.6,2438.5,5.16987879]
[1750839584766,10.0,2438.6,2438.3,2.4879]
[1750839585065,10.0,2438.6,2438.3,6.58905498]
[1750839585370,16.51772663,2438.4,2438.3,2.4879]
[1750839585535,16.51772663,2438.4,2438.3,9.1849]
[1750839586162,16.51772663,2438.4,2438.3,13.28611806]
[1750839588552,10.0,2438.4,2438.3,13.28611806]
[1750839590138,10.0,2438.4,2438.3,16.03027127]
[1750839590767,10.0,2438.4,2438.3,1.716]
[1750839591157,0.8197,2438.2,2438.1,0.2190589]
[1750839591388,17.33742663,2438.2,2438.1,0.2190589]
[1750839592262,21.43881289,2438.2,2438.1,0.2190589]
[1750839593553,10.0,2437.6,2437.2,11.577]
[1750839593784,10.0,2437.3,2437.2,22.37906909]
[1750839593959,10.0,2437.3,2437.2,4.10306909]
[1750839594155,10.0,2437.3,2437.0,1.42989406]
[1750839594456,10.0,2437.3,2437.0,0.7884]
[1750839594660,10.0,2437.0,2436.7,2.5702]
[1750839595068,20.62146924,2436.8,2436.7,1.738]
[1750839595484,10.0,2436.8,2436.7,1.738]
[1750839595873,14.10374261,2436.8,2436.7,1.738]
[1750839596079,10.0,2436.8,2436.7,1.738]
[1750839596290,10.0,2436.8,2436.7,2.493]
[1750839596458,7.5234,2437.8,2436.8,0.755]
[1750839596661,7.5234,2437.8,2436.9,6.719]
[1750839596868,4.1022275,2437.7,2436.9,6.719]
[1750839597065,7.5234,2437.8,2436.8,0.755]
[1750839597268,4.10309934,2437.2,2436.9,1.738]
[1750839597469,4.10299799,2437.3,2437.0,0.9212]
[1750839597908,4.10281052,2437.4,2437.0,0.9212]
[1750839598109,4.41169485,2437.5,2437.0,0.9212]
[1750839598269,4.41165503,2437.5,2437.0,2.6592]
[1750839598468,4.10259738,2437.5,2437.0,2.6592]
[1750839598696,4.10246458,2437.6,2437.1,1.34836929]
[1750839598907,4.10246458,2437.6,2437.2,0.8324]
[1750839599194,0.30290224,2437.6,2437.2,0.8324]
[1750839599405,4.10232962,2437.7,2437.2,4.93545814]
[1750839599568,14.10214608,2437.8,2437.2,4.93545814]
[1750839599766,10.0,2437.6,2437.3,0.62838274]
[1750839599970,4.10248955,2437.6,2437.2,0.8324]
[1750839600166,14.10264057,2437.5,2437.2,0.8324]
[1750839600513,14.1026424,2437.5,2437.2,0.8324]
[1750839601788,14.1026424,2437.5,2437.1,1.34836929]
[1750839602502,14.41208367,2437.6,2437.1,1.34836929]
[1750839602700,14.10247352,2437.6,2437.2,0.79717537]
[1750839603403,10.0,2437.6,2437.2,0.79717537]
[1750839603974,14.10239686,2437.6,2437.2,0.79717537]
[1750839604409,14.10239686,2437.6,2437.1,5.45159848]
[1750839604609,14.10239686,2437.6,2437.1,1.34836929]
[1750839605017,14.10239686,2437.6,2437.1,5.45159929]
[1750839605187,4.10257079,2437.5,2437.1,1.34836929]
[1750839605788,14.40410817,2437.6,2437.1,1.34836929]
[1750839606011,14.40410817,2437.6,2437.2,0.79717592]
[1750839606812,10.30163925,2437.6,2437.2,4.9002222]
[1750839607018,10.30163925,2437.6,2437.2,0.79717592]
[1750839607207,14.40405029,2437.6,2437.2,0.79717592]
[1750839607599,4.10173705,2438.0,2437.5,4.10247087]
[1750839607794,4.10189773,2437.9,2437.5,2.63419681]
[1750839608005,14.10214404,2437.8,2437.5,2.63419681]
[1750839608309,14.10214404,2437.8,2437.5,1.738]
[1750839608812,14.10183074,2438.0,2437.5,5.84053968]
[1750839609118,14.10183074,2438.0,2437.6,0.7567]
[1750839610101,14.40208668,2438.0,2437.6,0.7567]
[1750839610299,10.30025594,2438.0,2437.6,0.7567]
[1750839610504,10.30025594,2438.0,2437.7,0.24947]
[1750839611317,10.30025594,2438.0,2437.7,4.35161837]
[1750839611318,0.30025594,2438.0,2437.7,4.35161837]
[1750839611520,10.0,2438.1,2437.8,0.8054]
[1750839611721,4.10156471,2438.1,2437.8,0.8054]
[1750839611900,10.0,2437.9,2437.6,0.8054]
[1750839612105,10.0,2437.9,2437.6,2.14209306]
[1750839612325,4.10185866,2438.0,2437.6,6.24446075]
[1750839612326,10.0,2438.0,2437.6,6.24446075]
[1750839612493,10.31431506,2438.0,2437.6,2.14209306]
[1750839613027,14.41609467,2438.0,2437.6,0.8054]
[1750839613225,10.31431506,2438.0,2437.6,0.8054]
[1750839613521,14.41611133,2438.0,2437.6,0.8054]
[1750839613893,10.31431506,2438.0,2437.6,4.90778607]
[1750839614094,10.31431506,2438.0,2437.6,0.8054]
[1750839614293,14.41613282,2438.0,2437.6,0.8054]
[1750839614698,10.31431506,2438.0,2437.6,4.9077901]
[1750839615024,10.31431506,2438.0,2437.6,6.65472952]
[1750839615226,4.41605506,2438.0,2437.6,2.55233942]
[1750839616197,10.0,2437.8,2437.6,2.55233942]
[1750839616424,4.10180007,2438.0,2437.6,2.55233942]
[1750839616620,4.10190567,2437.9,2437.6,0.8054]
[1750839616994,10.30960818,2438.0,2437.6,0.8054]
[1750839616995,14.41142781,2438.0,2437.6,0.8054]
[1750839617332,4.41137985,2438.0,2437.5,1.738]
[1750839617532,10.0,2437.8,2437.5,5.84055505]
[1750839617899,4.10189209,2437.9,2437.5,1.738]
[1750839618098,10.0,2437.8,2437.5,2.30539394]
[1750839618434,10.0,2437.6,2437.5,2.30539394]
[1750839619210,10.0,2437.6,2437.5,6.40795804]
[1750839619606,10.0,2437.7,2437.6,4.1023247]
[1750839619927,10.3127653,2438.0,2437.7,0.7664]
[1750839620131,10.0,2438.0,2437.7,0.7664]
[1750839620923,14.10174048,2438.0,2437.7,0.7664]
[1750839622731,14.40241719,2438.0,2437.7,0.7664]
[1750839623637,16.54448201,2437.8,2437.6,4.10237448]
[1750839623820,0.8191,2438.6,2438.0,0.8051]
[1750839624003,6.54448201,2438.4,2438.1,1.745]
[1750839624205,10.0,2438.3,2438.1,1.745]
[1750839624710,10.0,2438.3,2438.1,5.84646087]
[1750839625705,10.0,2438.3,2438.2,4.10138626]
[1750839626128,6.54448201,2438.4,2438.3,4.93201806]
[1750839626434,16.54448201,2438.4,2438.3,4.93201806]
[1750839626633,16.54448201,2438.4,2438.3,0.8308]
[1750839627036,4.10029604,2438.9,2438.4,4.1009729]
[1750839627333,6.54448201,2438.8,2438.5,4.10079777]
[1750839627526,10.0,2438.7,2438.6,1.745]
[1750839628940,0.8075,2438.7,2437.9,1.745]
[1750839629233,16.54448201,2438.0,2437.9,1.745]
[1750839630422,16.54448201,2438.0,2437.9,5.84689097]
[1750839630626,10.0,2438.0,2437.9,5.84689097]
[1750839632541,10.0,2438.0,2437.9,1.745]
[1750839632742,10.0,2438.0,2437.9,2.79539879]
[1750839634945,10.0,2438.0,2437.9,7.72318976]
[1750839635843,10.0,2438.0,2437.9,8.27318976]
[1750839635844,7.34375,2438.0,2437.9,8.27318976]
[1750839636144,4.10045217,2438.8,2438.4,0.8036]
[1750839636319,10.83522997,2438.9,2438.4,2.5486]
[1750839636320,4.10055516,2438.7,2438.4,2.5486]
[1750839637358,8.86365957,2439.0,2438.4,2.5486]
[1750839637529,4.10061612,2438.7,2438.4,2.5486]
[1750839637966,10.0,2438.6,2438.4,1.745]
[1750839638339,14.10080702,2438.6,2438.4,1.745]
[1750839638923,10.0,2438.6,2438.4,1.745]
[1750839640458,10.0,2438.7,2438.4,1.745]
[1750839640630,4.10056247,2438.7,2438.4,1.745]
[1750839641161,14.10046957,2438.8,2438.4,1.745]
[1750839642163,4.10055637,2438.7,2438.4,1.745]
[1750839643535,14.10045301,2438.8,2438.4,1.745]
[1750839643732,10.0,2438.8,2438.4,3.08467993]
[1750839644065,10.0,2438.9,2438.5,4.86654433]
[1750839644239,4.10022671,2438.9,2438.5,4.86654433]
[1750839644446,4.10022671,2438.9,2438.5,7.4898]
[1750839644645,15.41863746,2439.0,2438.5,9.36745591]
[1750839644959,15.41861149,2439.0,2438.5,13.46824086]
[1750839645448,15.41861149,2439.0,2438.6,4.10070965]
[1750839645762,5.41861227,2439.0,2438.5,13.46824678]
[1750839645964,4.1002677,2438.9,2438.5,9.36745591]
[1750839646274,5.41868781,2439.0,2438.6,1.11124559]
[1750839646630,4.89753633,2438.9,2438.6,1.11124559]
[1750839647173,0.7973,2438.9,2438.6,1.11124559]
[1750839648267,0.7973,2438.9,2438.6,5.21195512]
[1750839648562,1.31855957,2439.0,2438.6,5.21195512]
[1750839649264,1.31855957,2439.0,2438.7,5.70420646]
[1750839650467,1.01219919,2439.0,2438.9,4.10020911]
[1750839650669,1.01219919,2439.0,2438.9,8.469]
[1750839653259,1.32487983,2439.0,2438.9,8.469]
[1750839654264,17.55015607,2439.0,2438.9,8.469]
[1750839654470,17.55015607,2439.0,2438.9,14.47804844]
[1750839655275,17.55015607,2439.0,2438.9,10.37783933]
[1750839657646,17.55015607,2439.0,2438.9,14.47804844]
[1750839658244,17.55015607,2439.0,2438.9,10.37783933]
[1750839658478,0.8091,2438.9,2438.3,0.8188]
[1750839658653,6.53795688,2438.5,2438.4,12.57200105]
[1750839659052,10.0,2438.6,2438.5,4.10080451]
[1750839659966,10.0,2438.6,2438.4,12.57203306]
[1750839660780,10.0,2438.6,2438.4,8.471]
[1750839661079,10.0,2438.6,2438.5,1.3390923]
[1750839661283,10.0,2438.6,2438.4,1.75]
[1750839661444,10.0,2438.6,2438.5,6.723]
[1750839663680,10.0,2438.6,2438.5,10.82388168]
[1750839664074,7.55015607,2439.0,2438.6,0.7583]
[1750839664385,7.55015607,2439.0,2438.8,4.1002657]
[1750839664386,1.01219919,2439.0,2438.8,4.1002657]
[1750839664685,1.01219919,2439.0,2438.9,1.75]
[1750839666054,15.11224019,2439.0,2438.9,1.75]
[1750839666285,15.88024019,2439.0,2438.9,1.75]
[1750839667890,11.78019919,2439.0,2438.9,1.75]
[1750839668270,15.88024019,2439.0,2438.9,1.75]
[1750839668592,11.01219919,2439.0,2438.9,1.75]
[1750839671681,15.11224019,2439.0,2438.9,1.75]
[1750839673017,4.10054537,2438.7,2438.6,6.722]
[1750839673217,10.63850225,2438.7,2438.6,6.722]
[1750839673514,6.53795688,2438.7,2438.6,6.722]
[1750839674722,10.0,2438.6,2438.5,1.75]
[1750839675323,10.0,2438.6,2438.5,5.85088168]
[1750839675488,10.0,2438.6,2438.5,7.60159154]
[1750839676511,10.0,2438.6,2438.5,3.50070986]
[1750839676715,10.0,2438.6,2438.5,1.75]
[1750839678499,14.10071352,2438.6,2438.5,1.75]
[1750839682917,10.0,2438.6,2438.5,1.75]
[1750839683136,14.10071352,2438.6,2438.5,1.75]
[1750839684441,10.0,2438.2,2438.1,1.751]
[1750839684629,16.53795688,2438.2,2438.1,1.751]
[1750839684831,20.63934314,2438.2,2438.1,3.66244]
[1750839685035,20.63934314,2438.2,2438.1,1.751]
[1750839685908,20.63934314,2438.2,2437.6,0.7543]
[1750839685909,4.10178793,2438.0,2437.6,0.7543]
[1750839686113,16.53795688,2437.7,2437.6,7.4693]
[1750839686425,16.53795688,2437.7,2437.6,9.2203]
[1750839687347,16.53795688,2437.7,2437.6,3.83758881]
[1750839687518,16.53795688,2437.7,2437.6,8.47]
[1750839688748,20.64018438,2437.7,2437.6,1.751]
[1750839694333,14.10273241,2437.4,2437.3,1.752]
[1750839694557,20.64068929,2437.4,2437.3,1.752]
[1750839695345,16.53795688,2437.4,2437.3,1.752]
[1750839696049,20.64068929,2437.4,2437.3,1.752]
[1750839696421,16.53795688,2437.4,2437.3,1.752]
[1750839696946,20.64068929,2437.4,2437.3,1.752]
[1750839697256,20.64068929,2437.4,2437.2,0.7626]
[1750839697257,14.10290075,2437.3,2437.2,1.752]
[1750839697544,14.89760075,2437.3,2437.2,1.752]
[1750839697747,14.89760075,2437.3,2436.5,4.10411416]
[1750839697748,10.8225,2436.8,2436.3,0.8208]
[1750839697955,16.53795688,2436.4,2436.3,2.5728]
[1750839698125,10.0,2436.3,2436.1,0.8208]
[1750839698327,10.64239947,2436.4,2436.1,0.8208]
[1750839698519,10.0,2436.3,2436.1,0.8208]
[1750839699065,10.0,2436.3,2436.0,1.752]
[1750839699247,10.0,2436.1,2436.0,6.91319126]
[1750839699617,10.0,2436.1,2436.0,5.16119126]
[1750839699814,10.0,2436.1,2436.0,9.2759]
[1750839700218,10.0,2436.1,2436.0,13.38199031]
[1750839700417,16.53795688,2436.1,2436.0,13.38199031]
[1750839701244,16.53795688,2436.1,2436.0,0.8009]
[1750839701446,16.53795688,2436.1,2436.0,9.2779]
[1750839701755,16.53795688,2436.1,2436.0,13.38299031]
[1750839702172,10.0,2436.1,2436.0,15.19599499]
[1750839703356,10.0,2436.1,2436.0,13.38299031]
[1750839703554,10.0,2436.1,2436.0,4.90599031]
[1750839703762,16.53795688,2436.1,2436.0,6.65899031]
[1750839704082,16.53795688,2436.1,2436.0,13.38699031]
[1750839704558,16.53795688,2436.1,2436.0,9.2819]
[1750839704880,16.53795688,2436.1,2436.0,13.38699031]
[1750839705763,16.53795688,2436.1,2436.0,15.2004004]
[1750839705963,10.0,2436.1,2436.0,15.2004004]
[1750839706253,10.0,2436.1,2436.0,15.0504004]
[1750839708249,6.53795688,2436.6,2436.4,4.10435918]
[1750839708450,6.53795688,2436.6,2436.5,8.483]
[1750839709380,6.53795688,2436.6,2436.5,9.3134]
[1750839709560,6.53795688,2436.6,2436.5,13.9643815]
[1750839710277,16.53795688,2436.6,2436.5,13.9643815]
[1750839710981,16.53795688,2436.6,2436.5,9.3134]
[1750839711175,16.53795688,2436.6,2436.5,8.483]
[1750839718408,16.53795688,2436.6,2436.5,12.58724789]
[1750839718706,16.53795688,2436.6,2436.5,8.483]
[1750839718908,16.53795688,2436.6,2436.5,12.58724789]
[1750839719208,16.53795688,2436.6,2436.5,14.33403647]
[1750839720601,16.53795688,2436.6,2436.5,15.15943647]
[1750839721576,10.0,2436.6,2436.5,15.15943647]
[1750839721804,16.53795688,2436.6,2436.5,15.15943647]
[1750839722410,16.53795688,2436.6,2436.5,14.33403647]
[1750839722707,16.53795688,2436.6,2436.5,8.483]
[1750839723686,10.0,2436.5,2436.1,0.8101]
[1750839723891,6.53795688,2436.2,2436.1,0.8101]
[1750839724085,6.53795688,2436.2,2436.1,9.2831]
[1750839724320,6.53795688,2436.2,2436.1,1.755]
[1750839724479,6.53795688,2436.2,2436.1,12.5809218]
[1750839724919,6.53795688,2436.2,2436.1,10.22193709]
[1750839725210,6.53795688,2436.2,2436.1,14.32685889]
[1750839725535,6.53795688,2436.2,2436.1,10.22193709]
[1750839725536,16.53795688,2436.2,2436.1,10.22193709]
[1750839726699,16.53795688,2436.2,2436.1,8.476]
[1750839726887,16.53795688,2436.2,2436.1,1.755]
[1750839727081,10.0,2436.1,2435.9,6.72]
[1750839727324,16.53795688,2436.0,2435.9,6.72]
[1750839727520,16.53795688,2436.0,2435.9,10.82525883]
[1750839728334,10.0,2436.0,2435.9,12.59601013]
[1750839729545,10.0,2436.0,2435.9,8.4907513]
[1750839729704,10.0,2436.0,2435.9,12.59601013]
[1750839730333,10.0,2436.0,2435.9,6.72]
[1750839730502,10.0,2436.0,2435.9,10.82525883]
[1750839730827,10.0,2436.0,2435.9,4.10525883]
[1750839731010,10.8011,2436.1,2435.9,8.481]
[1750839732028,14.90605445,2436.1,2435.9,8.481]
[1750839732242,10.8011,2436.1,2435.9,8.481]
[1750839732530,10.8011,2436.1,2435.9,12.58624842]
[1750839733113,10.0,2436.1,2435.9,12.58624842]
[1750839733307,10.0,2436.1,2436.0,4.10509031]
[1750839733502,10.0,2436.1,2436.0,4.91539031]
[1750839734031,0.31219348,2436.5,2436.2,4.10458658]
[1750839734235,10.0,2436.3,2436.1,4.10476072]
[1750839734546,10.0,2436.3,2436.2,10.8277533]
[1750839734836,10.0,2436.3,2436.2,6.723]
[1750839735001,10.0,2436.3,2436.2,12.40206651]
[1750839736148,10.0,2436.3,2436.2,13.20376651]
[1750839736339,20.11975916,2436.8,2436.4,4.10436541]
[1750839736541,20.11975916,2436.8,2436.4,12.58636541]
[1750839736923,20.11975916,2436.8,2436.5,4.10424105]
[1750839737249,0.8031,2437.0,2436.6,6.726]
[1750839737419,9.29025916,2437.1,2436.7,4.10391102]
[1750839737615,9.29025916,2437.1,2436.8,4.10366395]
[1750839737846,9.29025916,2437.1,2436.7,4.10384419]
[1750839738038,10.0,2437.0,2436.7,4.10384419]
[1750839738233,10.0,2437.0,2436.7,5.7672377]
[1750839739542,10.0,2437.0,2436.8,10.83072801]
[1750839739727,10.0,2437.0,2436.9,4.10357421]
[1750839740529,10.08975916,2437.4,2437.0,4.10340582]
[1750839740730,9.29025916,2437.4,2437.1,4.10323745]
[1750839741054,10.0,2437.3,2437.2,10.82906909]
[1750839741654,10.0,2437.3,2437.2,6.726]
[1750839742561,10.0,2437.3,2437.2,10.82906909]
[1750839743563,9.29025916,2437.4,2437.3,4.10290075]
[1750839743853,9.29025916,2437.4,2437.3,5.59609773]
[1750839744052,5.43301258,2437.8,2437.3,5.59609773]
[1750839744255,10.0,2437.6,2437.4,6.723]
[1750839744454,10.0,2437.6,2437.4,10.82568275]
[1750839744823,10.0,2437.6,2437.4,12.57768275]
[1750839745028,10.0,2437.6,2437.4,8.475]
[1750839746226,10.0,2437.6,2437.4,9.47159518]
[1750839746630,10.0,2437.6,2437.4,8.475]
[1750839747042,14.10244473,2437.6,2437.4,8.475]
[1750839747843,14.1025641,2437.5,2437.4,8.475]
[1750839748037,10.0,2437.4,2437.0,6.60381778]
[1750839748263,10.0,2437.2,2437.0,5.77191778]
[1750839748562,9.29025916,2437.3,2437.1,8.474]
[1750839748865,9.29025916,2437.3,2437.1,12.57722841]
[1750839750780,10.0,2437.2,2437.1,8.474]
[1750839751136,10.0,2437.2,2437.1,1.752]
[1750839751137,10.8315,2437.2,2437.1,1.752]
[1750839751342,16.94674501,2437.2,2437.1,1.752]
[1750839751568,16.94674501,2437.2,2436.8,8.474]
[1750839751569,10.0,2437.0,2436.8,8.474]
[1750839751754,19.29025916,2436.9,2436.8,8.474]
[1750839752431,19.29025916,2436.9,2436.8,1.752]
[1750839752634,24.22613337,2436.9,2436.8,1.752]
[1750839752836,21.53952607,2436.9,2436.8,1.752]
[1750839753049,25.64310028,2436.9,2436.8,1.752]
[1750839753790,14.10379258,2436.8,2436.3,1.752]
[1750839753935,19.29025916,2436.5,2436.4,4.10441635]
[1750839754136,10.0,2436.4,2436.3,12.58050668]
[1750839754458,9.29025916,2436.5,2436.4,4.10441635]
[1750839755269,20.12255916,2436.9,2436.5,4.10423385]
[1750839755478,24.22613399,2436.9,2436.3,14.32624277]
[1750839755676,24.22613399,2436.9,2436.4,4.1042979]
[1750839755878,20.12255916,2436.9,2436.5,4.1042254]
[1750839756049,19.29025916,2436.9,2436.7,4.10379001]
[1750839756374,10.04925916,2437.3,2436.9,4.06637133]
[1750839756572,10.04925916,2437.7,2437.0,10.83040408]
[1750839756747,10.0,2437.6,2437.2,4.10298399]
[1750839756941,9.29025916,2437.7,2437.3,2.5261]
[1750839757156,10.0,2437.6,2437.3,1.752]
[1750839757363,10.99914829,2437.7,2437.3,5.8548415]
[1750839757690,10.0,2437.6,2437.3,1.752]
[1750839758363,10.0,2437.6,2437.2,1.752]
[1750839758562,10.0,2437.6,2437.2,5.85498299]
[1750839758795,10.0,2437.6,2437.2,1.752]
[1750839759293,10.0,2437.6,2437.3,4.10285465]
[1750839759495,10.0,2437.6,2437.2,5.85502111]
[1750839759668,10.0,2437.6,2437.2,1.752]
[1750839759867,11.7202537,2437.6,2437.2,1.752]
[1750839760064,11.7202537,2437.6,2437.1,1.752]
[1750839760264,11.7202537,2437.6,2437.2,4.10302111]
[1750839760467,11.7202537,2437.6,2437.1,2.50192111]
[1750839760666,11.7202537,2437.6,2437.2,4.10298649]
[1750839760868,11.7202537,2437.6,2437.1,2.5007076]
[1750839761162,11.7202537,2437.6,2437.1,6.60386886]
[1750839761367,10.0,2437.6,2437.1,5.85511617]
[1750839761597,10.0,2437.6,2437.2,4.10169706]
[1750839761893,10.0,2437.6,2437.2,4.10297552]
[1750839762189,10.0,2437.6,2437.2,4.10299098]
[1750839762395,10.0,2437.6,2437.2,4.1029251]
[1750839762595,10.0,2437.6,2437.1,5.8518262]
[1750839762761,10.0,2437.6,2437.2,4.10299365]
[1750839762961,10.0,2437.6,2437.1,1.751]
[1750839763166,10.0,2437.6,2437.2,4.10297573]
[1750839763372,10.0,2437.6,2437.1,2.02329489]
[1750839763694,10.0,2437.6,2437.1,2.02217062]
[1750839763899,10.0,2437.6,2437.2,4.10299693]
[1750839764073,10.0,2437.6,2437.1,2.02106755]
[1750839764274,16.5459683,2437.3,2437.2,5.58193125]
[1750839764587,10.0,2437.2,2437.1,6.12417572]
[1750839764788,6.5459683,2437.3,2437.2,4.10306909]
[1750839764996,16.5459683,2437.3,2437.1,2.57013664]
[1750839765304,16.5459683,2437.3,2437.2,4.10306909]